bitfinex/quotes_ETHUSD_20260121
["timestamp","ask_amount","ask_price","bid_price","bid_amount"]
[1768957848440,7.66003643,2966.1,2965.0,0.98858762]
[1768957848643,5.05459512,2966.1,2965.0,0.98858762]
[1768957848876,0.91714653,2966.1,2965.1,0.98858762]
[1768957849167,3.37129959,2966.3,2965.1,0.98858762]
[1768957849370,4.65911847,2966.8,2965.6,0.98858762]
[1768957849540,4.65911847,2966.8,2965.9,0.98858762]
[1768957849541,3.37063502,2966.8,2965.9,0.98858762]
[1768957849746,0.75361882,2966.7,2965.9,0.98858762]
[1768957849977,0.41655532,2966.6,2965.9,0.98858762]
[1768957850547,6.74195178,2966.5,2965.9,0.98858762]
[1768957850752,0.41655532,2966.4,2965.9,0.98858762]
[1768957851081,0.3370635,2966.7,2965.9,0.98858762]
[1768957851082,0.3370635,2966.7,2966.0,0.98858762]
[1768957851245,0.41655532,2967.0,2966.0,0.98858762]
[1768957851971,3.91008036,2967.3,2966.0,0.98858762]
[1768957851972,3.78674924,2967.2,2966.0,0.98858762]
[1768957852555,0.41655532,2967.2,2966.0,0.98858762]
[1768957853073,3.37013136,2967.3,2966.0,0.98858762]
[1768957853245,3.78654839,2967.4,2966.0,0.98858762]
[1768957853447,10.0842161,2969.7,2966.1,0.98858762]
[1768957853448,0.41655532,2967.8,2966.1,0.98858762]
[1768957853665,3.78608177,2967.8,2966.1,0.98858762]
[1768957854553,0.41655532,2967.8,2966.1,0.98858762]
[1768957854893,0.41655532,2967.8,2966.3,0.98858762]
[1768957855095,0.41655532,2967.8,2966.5,0.98858762]
[1768957855294,3.7860775,2967.8,2966.5,0.98858762]
[1768957855457,0.37860775,2967.7,2966.5,0.98858762]
[1768957855867,0.79516307,2967.7,2966.6,0.98858762]
[1768957856068,0.41655532,2967.5,2966.6,0.98858762]
[1768957856267,0.41655532,2967.5,2966.5,1.54358762]
[1768957856691,0.41655532,2967.3,2966.5,0.555]
[1768957856896,0.41655532,2967.1,2966.5,0.555]
[1768957858166,0.41655532,2967.0,2966.5,0.555]
[1768957858364,0.37865088,2967.2,2966.5,2.09858762]
[1768957858611,0.91865088,2967.2,2966.6,0.98858762]
[1768957858965,4.70541926,2967.2,2966.5,1.11]
[1768957859166,0.47054193,2967.1,2966.5,1.11]
[1768957859464,0.88709725,2967.1,2966.5,1.11]
[1768957860075,0.41655532,2967.0,2966.5,1.11]
[1768957860277,0.41655532,2967.0,2966.0,0.555]
[1768957860490,0.41655532,2967.0,2966.1,0.98858762]
[1768957860695,0.41655532,2967.0,2966.2,1.02228853]
[1768957860892,0.47054193,2967.1,2966.2,0.98858762]
[1768957860893,0.41655532,2966.9,2966.2,0.98858762]
[1768957861096,3.78656263,2967.4,2966.4,0.98858762]
[1768957861292,0.001,2966.9,2966.4,0.98858762]
[1768957862616,3.78629105,2967.6,2966.6,0.98858762]
[1768957862795,3.78629105,2967.6,2966.4,0.538]
[1768957862796,3.36973573,2967.6,2966.8,0.98858762]
[1768957863183,3.36973573,2967.6,2966.9,0.98858762]
[1768957863523,3.36973573,2967.6,2966.8,0.555]
[1768957863524,0.41755532,2967.5,2966.8,0.555]
[1768957863709,0.72793906,2967.5,2966.8,0.555]
[1768957864011,0.41755532,2967.4,2966.8,0.555]
[1768957864312,0.41755532,2967.4,2966.8,1.54358762]
[1768957864515,0.72793906,2967.5,2966.8,1.54358762]
[1768957864686,0.74674105,2967.4,2966.8,1.54358762]
[1768957864888,3.78729105,2967.6,2966.8,1.54358762]
[1768957865405,7.15702678,2967.6,2966.8,1.54358762]
[1768957865592,7.15702678,2967.6,2966.8,2.09858762]
[1768957866610,0.41755532,2967.6,2966.8,2.09858762]
[1768957866818,0.41755532,2967.6,2966.8,1.11]
[1768957866819,0.41755532,2967.5,2966.8,1.11]
[1768957867115,0.41755532,2967.3,2966.8,1.11]
[1768957867529,0.41755532,2967.3,2966.2,0.21005876]
[1768957867530,0.41755532,2967.2,2966.2,0.98858762]
[1768957868001,0.41755532,2967.2,2966.2,0.555]
[1768957868315,14.19575488,2967.4,2966.2,0.555]
[1768957868316,0.54,2967.1,2966.3,0.98858762]
[1768957868474,0.95755532,2967.1,2966.3,0.98858762]
[1768957868983,3.78789919,2967.1,2966.3,0.98858762]
[1768957869181,0.76981588,2967.0,2966.3,0.98858762]
[1768957870388,0.76981588,2967.0,2966.4,0.98858762]
[1768957870604,3.91023604,2967.2,2966.4,0.98858762]
[1768957871098,3.91018295,2967.2,2966.4,0.98858762]
[1768957871401,11.5356904,2968.5,2966.4,0.98858762]
[1768957871402,0.41755532,2968.0,2966.6,0.98858762]
[1768957871601,0.41755532,2967.8,2966.8,0.98858762]
[1768957871804,0.41755532,2967.6,2966.8,0.98858762]
[1768957872916,0.41755532,2967.6,2966.8,1.54358762]
[1768957873088,0.71563268,2967.7,2966.5,0.98858762]
[1768957873089,0.41755532,2967.4,2966.5,0.98858762]
[1768957873605,0.41755532,2967.4,2966.3,0.555]
[1768957873793,0.41755532,2967.4,2966.3,1.54358762]
[1768957873991,0.41955532,2967.4,2966.4,0.98858762]
[1768957875089,7.15768944,2967.3,2966.4,0.98858762]
[1768957875404,1.13352426,2967.2,2966.4,1.54358762]
[1768957875599,0.71596894,2967.2,2966.5,0.9698689]
[1768957875815,0.002,2967.4,2966.5,0.9698689]
[1768957875816,3.37195617,2967.4,2966.5,0.9698689]
[1768957875989,0.002,2967.4,2966.5,0.9698689]
[1768957877580,0.002,2967.4,2966.7,0.9698689]
[1768957878632,3.36918363,2968.1,2966.7,0.9698689]
[1768957878633,3.90922738,2968.1,2966.7,0.9698689]
[1768957878927,1.29647368,2968.1,2966.7,0.9698689]
[1768957879081,0.41955532,2968.5,2966.7,0.9698689]
[1768957879283,3.78830681,2968.5,2966.9,0.9698689]
[1768957879519,0.41955532,2968.5,2966.9,0.9698689]
[1768957879707,2.03,2969.5,2966.9,0.9698689]
[1768957879708,0.41955532,2968.8,2966.9,0.9698689]
[1768957879893,0.41955532,2968.8,2967.1,0.9698689]
[1768957880092,0.41955532,2968.8,2967.3,0.9698689]
[1768957880309,0.95955532,2968.8,2967.3,0.9698689]
[1768957881119,0.41955532,2968.8,2967.3,0.9698689]
[1768957881288,3.36845081,2968.8,2967.3,0.9698689]
[1768957881611,0.33684508,2968.7,2967.5,0.9698689]
[1768957882501,3.7879037,2968.9,2967.5,0.9698689]
[1768957882688,3.7879037,2968.9,2967.6,0.9698689]
[1768957883293,0.41955532,2968.9,2967.6,0.9698689]
[1768957883492,3.36826555,2968.9,2967.6,0.9698689]
[1768957883717,3.78770769,2969.0,2967.6,0.9698689]
[1768957883908,3.37392655,2969.2,2967.7,0.9698689]
[1768957883909,3.37396715,2969.2,2967.7,0.9698689]
[1768957884214,6.7419343,2969.2,2967.9,0.9698689]
[1768957885192,6.7419343,2969.2,2968.0,0.9698689]
[1768957885507,0.67419343,2969.1,2968.0,0.9698689]
[1768957885710,3.37394371,2969.2,2968.0,0.9698689]
[1768957886093,6.74188742,2969.2,2968.0,0.9698689]
[1768957886478,3.37396019,2969.2,2968.0,0.9698689]
[1768957886902,6.74192038,2969.2,2968.0,0.9698689]
[1768957887214,6.74192038,2969.2,2968.2,0.9698689]
[1768957887391,0.002,2968.8,2968.2,0.9698689]
[1768957887592,0.002,2968.8,2968.2,0.555]
[1768957888104,0.002,2968.8,2968.0,0.9698689]
[1768957889123,0.002,2968.8,2968.2,0.9698689]
[1768957889330,0.002,2968.8,2968.3,0.9698689]
[1768957890029,0.33901374,2968.8,2968.1,0.9698689]
[1768957890326,0.33901374,2968.8,2967.9,0.555]
[1768957891717,6.73695556,2968.7,2967.9,0.555]
[1768957892235,10.10543334,2968.7,2967.9,0.555]
[1768957892434,10.10543334,2968.7,2967.6,0.9698689]
[1768957892435,13.47391112,2968.7,2967.6,0.9698689]
[1768957892579,1.92129249,2968.6,2967.6,0.9698689]
[1768957893324,1.38129249,2968.6,2967.6,0.9698689]
[1768957893831,6.73740946,2968.5,2967.6,0.9698689]
[1768957895320,6.73740946,2968.5,2967.6,1.5248689]
[1768957895907,6.73740946,2968.5,2967.7,0.9698689]
[1768957896215,0.8658702,2968.4,2967.7,0.9698689]
[1768957896419,0.8658702,2968.4,2967.6,0.555]
[1768957896420,3.36870473,2968.5,2967.9,0.9698689]
[1768957896721,3.36870473,2968.5,2967.6,0.555]
[1768957896722,6.73740946,2968.5,2967.7,0.9698689]
[1768957897695,6.73740946,2968.5,2967.8,0.9698689]
[1768957898001,0.002,2968.8,2967.9,0.0274059]
[1768957898203,0.002,2968.8,2968.0,0.9698689]
[1768957899891,0.002,2968.8,2968.2,0.9698689]
[1768957900620,6.73604796,2969.1,2968.0,0.02741389]
[1768957900621,3.36807413,2969.1,2968.1,0.9698689]
[1768957900818,3.36807413,2969.1,2968.3,0.9698689]
[1768957901320,3.90748317,2969.6,2968.3,0.9698689]
[1768957901321,3.37395185,2969.2,2968.3,0.9698689]
[1768957901521,4.04811726,2969.2,2968.3,0.9698689]
[1768957901729,0.006,2969.2,2968.4,0.9698689]
[1768957902134,0.002,2968.8,2968.4,0.9698689]
[1768957902635,0.002,2968.8,2968.5,0.9698689]
[1768957903005,0.006,2969.2,2968.5,0.9698689]
[1768957904297,0.006,2969.2,2968.7,0.9698689]
[1768957905121,0.006,2969.2,2968.8,0.91766243]
[1768957905909,3.37393429,2969.2,2968.8,0.91766243]
[1768957906130,0.006,2969.2,2968.8,0.91766243]
[1768957906630,0.006,2969.2,2968.8,1.11862867]
[1768957907131,0.002,2969.1,2967.8,0.556]
[1768957907315,6.74182108,2969.2,2968.0,0.90634353]
[1768957909922,7.65016461,2969.2,2968.0,0.90634353]
[1768957910127,7.65016461,2969.2,2968.1,0.90634353]
[1768957910325,8.41518107,2969.2,2968.1,0.90634353]
[1768957910529,0.90834353,2969.1,2968.2,0.537]
[1768957910740,0.90834353,2969.1,2968.2,1.44334353]
[1768957910946,10.87478435,2969.2,2968.0,0.555]
[1768957910947,0.90834353,2968.9,2968.0,0.555]
[1768957911237,0.90834353,2968.9,2968.1,0.90634353]
[1768957912129,3.37391054,2969.2,2968.1,0.90634353]
[1768957912426,6.74185735,2969.2,2968.1,0.90634353]
[1768957912627,6.74185735,2969.2,2968.2,0.90634353]
[1768957913326,3.37391054,2969.2,2968.2,0.90634353]
[1768957914237,3.37391054,2969.2,2968.4,0.90634353]
[1768957914700,6.74185735,2969.2,2968.4,0.90634353]
[1768957914897,0.002,2969.0,2968.5,0.90634353]
[1768957915138,0.002,2969.0,2968.5,1.10617788]
[1768957916635,0.91034353,2969.0,2968.4,0.555]
[1768957917307,0.91034353,2969.0,2968.4,1.11]
[1768957917508,0.002,2969.0,2968.5,0.90634353]
[1768957919851,0.002,2969.0,2968.6,0.90634353]
[1768957921351,0.002,2969.0,2968.5,0.555]
[1768957921352,0.91034353,2969.0,2968.5,0.555]
[1768957921652,0.90834353,2968.7,2968.1,0.555]
[1768957921973,0.90834353,2968.7,2967.9,0.537]
[1768957922125,0.90834353,2968.7,2968.1,0.555]
[1768957922323,0.90834353,2968.7,2967.9,0.537]
[1768957922633,0.35334353,2968.5,2967.9,0.537]
[1768957923719,6.73763642,2968.4,2967.9,0.537]
[1768957923924,0.35334353,2968.3,2967.7,1e-08]
[1768957924435,6.73763642,2968.4,2967.7,0.90634354]
[1768957924636,6.73763642,2968.4,2967.8,0.90634353]
[1768957925851,6.73740946,2968.5,2967.8,0.90634353]
[1768957926056,7.90228795,2968.5,2967.8,0.90634353]
[1768957926295,7.90228795,2968.5,2967.6,0.555]
[1768957926296,0.93764556,2968.3,2966.2,0.555]
[1768957926554,0.93764556,2968.3,2967.1,0.537]
[1768957926941,0.93764556,2968.3,2967.1,1.092]
[1768957927557,0.93764556,2968.3,2967.2,0.90634353]
[1768957927757,0.93764556,2968.3,2967.1,1.34733435]
[1768957927758,0.93764556,2968.3,2968.0,0.001]
[1768957928051,6.73809042,2968.2,2967.5,0.90634353]
[1768957928752,3.36904521,2968.2,2967.5,0.90634353]
[1768957928977,6.73809042,2968.2,2967.5,0.90634353]
[1768957929166,3.36904521,2968.2,2967.5,0.90634353]
[1768957929354,3.36904521,2968.2,2967.6,0.90634353]
[1768957929355,6.73809042,2968.2,2967.6,0.90634353]
[1768957929675,0.93764556,2968.1,2967.4,0.537]
[1768957929849,0.93764556,2967.9,2967.4,0.537]
[1768957930176,0.93764556,2967.9,2967.1,1.71667788]
[1768957930363,0.93764556,2967.9,2967.2,0.90634353]
[1768957930675,6.73854446,2968.0,2967.2,0.90634353]
[1768957930878,6.73854446,2968.0,2967.3,1.07801132]
[1768957931784,6.73854446,2968.0,2967.3,1.63301132]
[1768957932440,6.73854446,2968.0,2967.3,1.46134353]
[1768957932969,7.67619002,2968.0,2967.3,1.46134353]
[1768957933440,6.73854446,2968.0,2967.4,0.90634353]
[1768957934063,7.675963,2968.1,2967.4,1.46134353]
[1768957935977,7.70731103,2968.1,2967.4,1.46134353]
[1768957936397,0.96899359,2968.0,2967.4,1.46134353]
[1768957936569,0.96899359,2968.0,2967.4,1.11]
[1768957938395,6.73877152,2967.9,2967.4,1.11]
[1768957938908,6.73877152,2967.9,2967.5,0.95915171]
[1768957939082,6.73877152,2967.9,2967.4,1.665]
[1768957939687,6.73877152,2967.9,2967.6,0.001]
[1768957939909,6.73877152,2967.9,2967.3,0.555]
[1768957940298,10.10815728,2967.9,2967.1,2.05115171]
[1768957940476,1.01081573,2967.8,2967.1,2.05115171]
[1768957940684,10.10913563,2968.2,2967.1,2.05115171]
[1768957941006,0.96899359,2968.1,2967.1,2.05115171]
[1768957941179,0.96899359,2968.0,2967.1,2.05115171]
[1768957941381,0.96899359,2968.0,2967.1,2.60615171]
[1768957941581,0.96899359,2968.0,2967.1,2.06915171]
[1768957941781,0.96631496,2968.0,2967.1,2.06915171]
[1768957943013,0.96899359,2967.8,2967.1,2.06915171]
[1768957943713,0.96899359,2967.8,2967.1,2.62415171]
[1768957945509,7.70821925,2967.7,2967.1,2.62415171]
[1768957945685,4.33860642,2967.7,2967.1,2.62415171]
[1768957946005,3.36961283,2967.7,2967.2,0.95915171]
[1768957946913,0.96899359,2967.6,2967.1,2.59161517]
[1768957947112,0.96899359,2967.6,2967.1,2.757]
[1768957948309,6.73967986,2967.5,2967.1,2.757]
[1768957948520,0.96899359,2967.4,2967.1,2.757]
[1768957948705,6.73967986,2967.5,2967.1,2.775]
[1768957949207,3.36983993,2967.5,2967.1,2.775]
[1768957950305,3.36976281,2967.6,2967.2,0.95915171]
[1768957950820,3.36962433,2967.7,2967.3,0.95915171]
[1768957951983,6.73924866,2967.7,2967.3,0.95915171]
[1768957952183,3.36962433,2967.7,2967.3,0.95915171]
[1768957952597,6.73907232,2967.8,2967.3,0.95915171]
[1768957953726,6.73907232,2967.8,2967.4,0.95915171]
[1768957954527,6.73907232,2967.8,2967.5,0.95915171]
[1768957954528,3.36953616,2967.8,2967.5,0.95915171]
[1768957954698,6.73854446,2968.0,2967.5,0.95915171]
[1768957954878,8.05079199,2968.0,2967.4,0.537]
[1768957955084,0.96899359,2967.9,2967.1,0.537]
[1768957955391,0.96899359,2967.9,2966.9,0.555]
[1768957955716,0.96899359,2967.9,2966.9,1.51415171]
[1768957956013,0.96899359,2967.7,2967.0,0.95915171]
[1768957956622,0.96899359,2967.5,2967.0,0.95915171]
[1768957958216,0.96899359,2967.5,2966.9,2.06915171]
[1768957958420,0.96899359,2967.5,2966.9,2.62415171]
[1768957958950,0.96899359,2967.3,2966.9,1.665]
[1768957960223,3.37018064,2967.2,2966.9,1.665]
[1768957960815,3.37018064,2967.2,2966.9,3.17915171]
[1768957962322,0.96899359,2967.6,2967.0,0.95915171]
[1768957962522,0.96899359,2967.5,2966.9,2.22]
[1768957963327,0.96899359,2967.5,2966.9,2.775]
[1768957963521,0.96899359,2967.5,2966.8,0.537]
[1768957964211,0.96899359,2967.5,2966.6,0.95915171]
[1768957964415,0.96899359,2967.3,2966.7,0.537]
[1768957965229,0.96899359,2967.3,2966.7,1.47738178]
[1768957965820,0.96899359,2967.3,2966.7,2.03238178]
[1768957966031,0.96899359,2967.3,2967.1,0.001]
[1768957966326,0.96899359,2967.3,2966.7,2.03238178]
[1768957966707,3.37018064,2967.2,2966.7,2.03238178]
[1768957966903,6.74036128,2967.2,2966.7,0.555]
[1768957967108,6.74036128,2967.2,2966.7,1.49538178]
[1768957967409,3.37018064,2967.2,2966.8,0.94038178]
[1768957967600,0.92716914,2967.1,2966.7,0.555]
[1768957968906,0.92716914,2967.1,2966.4,2.05038178]
[1768957968907,0.92716914,2966.8,2966.4,1e-08]
[1768957970328,0.92716914,2966.9,2966.4,1e-08]
[1768957971010,0.92716914,2966.7,2966.4,1e-08]
[1768957973638,0.92716914,2966.5,2966.3,1e-08]
[1768957973818,0.92716914,2966.5,2966.2,1e-08]
[1768957974248,0.92716914,2966.5,2966.0,1e-08]
[1768957975535,0.92716914,2966.3,2966.0,1e-08]
[1768957976037,0.92716914,2966.3,2966.0,0.55500001]
[1768957977021,0.92716914,2966.3,2965.8,0.94038178]
[1768957977539,0.92716914,2966.1,2965.5,0.537]
[1768957978439,0.92716914,2966.1,2965.5,1.092]
[1768957978842,0.92716914,2966.1,2965.5,0.555]
[1768957979424,0.92716914,2966.0,2965.7,0.001]
[1768957979744,0.541,2966.1,2965.5,0.555]
[1768957979745,0.92716914,2965.8,2965.5,0.555]
[1768957980642,4.29875546,2966.0,2965.5,0.555]
[1768957980848,4.29875546,2966.0,2965.5,2.05038178]
[1768957981018,4.29875546,2966.0,2965.5,2.25541996]
[1768957982414,3.37158632,2966.0,2965.6,0.94038178]
[1768957982620,4.29860944,2966.1,2965.6,0.94038178]
[1768957982621,4.29864366,2966.1,2965.6,0.94038178]
[1768957983119,6.14145947,2966.7,2965.6,0.94038178]
[1768957983120,6.74159812,2966.7,2965.8,0.94038178]
[1768957983338,3.37074864,2966.7,2966.0,0.94038178]
[1768957983539,0.92916914,2967.0,2966.0,0.94038178]
[1768957983745,7.66821196,2966.9,2966.0,0.94038178]
[1768957984230,0.92916914,2966.8,2966.0,0.94038178]
[1768957985721,7.66866642,2966.7,2966.1,0.94038178]
[1768957985914,0.92716914,2966.6,2966.1,0.94038178]
[1768957987049,0.92716914,2966.6,2966.0,0.555]
[1768957987746,4.29814503,2966.5,2966.0,0.555]
[1768957988047,0.92716914,2966.4,2966.0,0.555]
[1768957988344,4.29814503,2966.5,2966.0,1.11]
[1768957988552,7.66912092,2966.5,2966.0,1.11]
[1768957988760,0.92716914,2966.4,2966.0,1.11]
[1768957989457,6.74195178,2966.5,2966.0,1.11]
[1768957990658,3.37097589,2966.5,2966.0,1.11]
[1768957990856,0.92716914,2966.5,2966.0,2.60538178]
[1768957991863,3.37108953,2966.4,2966.0,1.665]
[1768957992060,7.6693482,2966.4,2966.0,1.665]
[1768957992561,0.92716914,2966.3,2966.0,1.665]
[1768957993373,0.92716914,2966.3,2966.0,2.22]
[1768957994177,4.29843973,2966.3,2966.0,2.22]
[1768957995846,4.29843973,2966.3,2966.0,2.775]
[1768957996175,4.32537589,2966.3,2966.0,2.775]
[1768957997448,3.37127059,2966.3,2966.0,3.72647117]
[1768957998478,3.37127059,2966.3,2966.0,4.28147117]
[1768957998679,6.74254118,2966.3,2966.0,4.28147117]
[1768957998878,6.74254118,2966.3,2966.0,3.33]
[1768957999179,3.37127059,2966.3,2966.0,3.33]
[1768958000845,3.37127059,2966.3,2966.0,3.885]
[1768958002181,3.37127059,2966.3,2966.0,4.83647117]
[1768958003382,4.32524052,2966.4,2966.0,5.39147117]
[1768958005787,4.32524052,2966.4,2966.0,5.94647117]
[1768958007409,4.32526522,2966.4,2966.0,5.94647117]
[1768958007787,3.37115992,2966.4,2966.0,5.94647117]
[1768958007989,3.37115992,2966.4,2966.1,0.95147117]
[1768958010785,3.37115992,2966.4,2966.1,1.50647117]
[1768958011517,0.9541053,2966.5,2966.1,1.50647117]
[1768958011703,0.543,2966.6,2966.2,0.95147117]
[1768958012008,3.37286306,2966.6,2966.2,0.95147117]
[1768958012321,0.002,2966.6,2966.2,0.95147117]
[1768958013383,0.002,2966.6,2966.2,0.555]
[1768958013723,0.002,2966.8,2966.2,1.221]
[1768958013923,0.002,2966.8,2966.2,7.36532392]
[1768958015278,0.002,2966.8,2966.2,1.221]
[1768958015915,0.95211343,2967.1,2966.6,0.00199187]
[1768958016787,4.3242333,2967.3,2966.6,0.00199187]
[1768958017517,6.14432392,2967.6,2966.6,0.00199187]
[1768958017518,0.9541053,2967.6,2966.6,0.00199187]
[1768958017690,0.9541053,2967.5,2966.8,0.00199187]
[1768958018416,0.9541053,2967.5,2966.9,0.00199187]
[1768958019280,0.9541053,2967.2,2966.4,0.00199187]
[1768958019480,0.9541053,2967.2,2966.4,0.538]
[1768958019688,1.4951053,2967.2,2966.4,0.23159919]
[1768958019909,0.9541053,2966.9,2966.2,1.776]
[1768958020905,0.9541053,2966.9,2966.2,2.331]
[1768958021319,0.9541053,2966.9,2966.3,0.00199187]
[1768958021534,3.37018064,2967.2,2966.3,0.00199187]
[1768958021719,4.32428594,2967.2,2966.5,0.00199187]
[1768958021890,0.9541053,2967.2,2966.6,0.00199187]
[1768958022095,4.32420888,2967.3,2966.6,0.00199187]
[1768958022490,3.37005051,2967.4,2966.6,0.00199187]
[1768958022491,3.36997292,2967.4,2966.6,0.00199187]
[1768958022824,4.32407822,2967.4,2966.6,0.00199187]
[1768958023395,4.32407822,2967.4,2966.7,0.00199187]
[1768958024319,4.3240588,2967.4,2966.7,0.00199187]
[1768958025029,0.9541053,2967.4,2966.7,0.00199187]
[1768958025496,4.32406583,2967.4,2966.7,0.00199187]
[1768958026131,4.32406583,2967.4,2966.8,0.10496697]
[1768958026429,1.01601018,2967.3,2966.8,0.10496697]
[1768958028499,0.002,2967.1,2966.8,0.65996697]
[1768958028730,0.002,2967.1,2966.8,0.83696367]
[1768958029901,0.002,2967.1,2966.9,0.17686735]
[1768958030932,0.002,2967.1,2966.9,0.73186735]
[1768958031826,0.002,2967.1,2967.0,0.22343507]
[1768958033139,0.002,2967.1,2966.9,0.555]
[1768958033323,0.002,2967.1,2966.9,1.11]
[1768958033521,0.002,2967.1,2967.0,0.21109359]
[1768958035439,0.543,2967.7,2967.1,0.31340398]
[1768958035440,4.38762498,2967.7,2967.1,0.31340398]
[1768958035812,4.38762498,2967.7,2967.2,0.31340398]
[1768958036511,1.01601018,2967.6,2967.2,0.31340398]
[1768958037243,4.38762498,2967.7,2967.2,0.31340398]
[1768958037939,1.01601018,2967.6,2967.2,0.31340398]
[1768958038306,1.01601018,2967.6,2967.1,0.555]
[1768958038307,1.01601018,2967.5,2967.1,0.555]
[1768958039543,1.01601018,2967.4,2967.1,0.555]
[1768958040639,1.01601018,2967.4,2967.1,1.11]
[1768958041140,1.01801018,2967.4,2967.1,1.11]
[1768958042013,1.01601018,2967.3,2967.1,1.11]
[1768958042944,0.002,2967.4,2967.1,1.57118402]
[1768958043139,0.002,2967.4,2967.1,2.12618402]
[1768958044941,0.002,2967.4,2967.1,1.665]
[1768958045134,0.002,2967.4,2967.2,0.50125793]
[1768958045548,0.002,2967.4,2967.2,1.05625793]
[1768958046453,0.002,2967.4,2967.2,1.32838372]
[1768958048146,0.002,2967.4,2967.2,1.88338372]
[1768958049649,1.01601018,2967.3,2967.2,1.11]
[1768958049845,1.01601018,2967.3,2967.1,1.665]
[1768958050451,1.01601018,2967.3,2967.1,2.22]
[1768958050754,0.002,2967.4,2967.2,0.61607109]
[1768958050952,1.01801018,2967.7,2967.2,0.61607109]
[1768958050953,0.002,2967.7,2967.4,0.61607109]
[1768958052958,0.002,2967.9,2967.5,0.65060739]
[1768958053730,0.002,2967.7,2967.5,0.65060739]
[1768958055349,0.002,2967.7,2967.6,0.72119556]
[1768958055557,0.002,2967.7,2967.6,0.90431512]
[1768958056434,0.002,2967.7,2967.5,0.555]
[1768958056435,1.21961929,2967.7,2967.5,0.555]
[1768958057761,1.21961929,2967.7,2967.5,1.11]
[1768958059260,1.21761929,2967.6,2967.2,0.538]
[1768958059471,0.002,2967.7,2967.2,1.77614195]
[1768958060072,1.21961929,2967.7,2967.2,1.77614195]
[1768958060361,1.21961929,2967.7,2967.2,2.33114195]
[1768958061968,1.21761929,2967.6,2967.2,1.093]
[1768958062637,1.21761929,2967.6,2967.2,1.648]
[1768958063865,1.21761929,2967.6,2967.1,2.22]
[1768958063866,1.21761929,2967.5,2967.1,2.22]
[1768958064099,3.36979395,2967.6,2966.7,0.555]
[1768958064100,1.21761929,2967.1,2966.7,0.555]
[1768958065072,1.21761929,2967.1,2966.7,1.11]
[1768958065638,1.21761929,2967.1,2966.4,0.001]
[1768958066052,1.21761929,2966.9,2966.4,0.001]
[1768958066372,1.21761929,2966.9,2966.6,0.08419869]
[1768958066594,1.21761929,2966.8,2966.4,0.001]
[1768958067586,1.21761929,2966.8,2966.4,0.556]
[1768958067790,1.21761929,2966.5,2966.2,1.665]
[1768958067990,1.21761929,2966.5,2966.0,5.55]
[1768958068199,1.21761929,2966.3,2965.7,0.538]
[1768958070096,1.21761929,2966.3,2965.8,1.23814195]
[1768958070594,1.21761929,2966.7,2965.8,1.52675615]
[1768958070893,1.21761929,2967.3,2965.9,1.23814195]
[1768958071273,1.21761929,2967.3,2966.2,1.23814195]
[1768958071477,3.36995349,2967.4,2966.4,1.23814195]
[1768958071794,1.21761929,2967.3,2966.4,1.23814195]
[1768958072495,4.58771453,2967.3,2966.4,1.23814195]
[1768958072696,4.58771453,2967.3,2966.5,1.23814195]
[1768958073202,1.21761929,2967.2,2966.4,0.555]
[1768958073401,1.21761929,2967.1,2966.4,0.555]
[1768958073694,1.21761929,2967.1,2966.4,1.093]
[1768958074984,1.21761929,2966.9,2966.4,1.093]
[1768958075192,1.21761929,2966.9,2966.4,1.648]
[1768958075493,1.21761929,2966.7,2966.4,1.648]
[1768958075693,6.74081562,2967.0,2966.4,1.648]
[1768958075899,1.21761929,2966.9,2966.4,1.648]
[1768958076606,6.74081562,2967.0,2966.4,2.88614195]
[1768958076782,7.95843491,2967.0,2966.4,2.88614195]
[1768958076965,9.44787241,2967.0,2966.4,2.88614195]
[1768958077868,9.44787241,2967.0,2966.4,3.44114195]
[1768958078269,6.0774646,2967.0,2966.4,3.44114195]
[1768958078796,9.44787241,2967.0,2966.6,0.001]
[1768958079125,0.79578098,2967.2,2966.6,1.23914195]
[1768958079302,4.58768635,2967.3,2966.6,1.23914195]
[1768958079600,1.21761929,2967.2,2966.6,1.23914195]
[1768958080606,1.21761929,2967.2,2966.6,1.79414195]
[1768958080798,3.37006706,2967.3,2966.7,1.23814195]
[1768958080969,4.58768635,2967.3,2966.7,1.23814195]
[1768958081169,1.21761929,2967.2,2966.7,1.23814195]
[1768958081399,3.37006706,2967.3,2966.7,1.23814195]
[1768958081608,4.58768635,2967.3,2966.7,1.23814195]
[1768958082096,3.37006706,2967.3,2966.7,1.41755615]
[1768958082702,4.58768635,2967.3,2966.7,1.23814195]
[1768958082910,7.95775341,2967.3,2966.7,1.79314195]
[1768958083314,1.21761929,2967.2,2966.7,1.79314195]
[1768958085228,4.58788761,2967.2,2966.7,1.79314195]
[1768958085528,4.58788761,2967.2,2966.7,2.34814195]
[1768958087507,3.37026832,2967.2,2966.8,2.54813714]
[1768958087899,3.37026832,2967.2,2966.8,3.10313714]
[1768958088315,5.92612459,2967.2,2966.8,0.555]
[1768958089721,3.37026832,2967.2,2966.8,3.10313714]
[1768958090314,5.92598032,2967.3,2966.8,3.10313714]
[1768958090614,5.92598032,2967.3,2966.8,1.11]
[1768958090805,0.002,2967.0,2966.9,2.54813714]
[1768958091120,0.002,2967.0,2966.9,3.02495085]
[1768958093414,0.002,2967.0,2966.9,3.57995085]
[1768958094214,0.002,2967.2,2966.9,1.03181371]
[1768958094517,0.002,2967.2,2967.0,2.54813714]
[1768958094720,0.002,2967.5,2967.1,2.54813714]
[1768958094889,0.002,2967.5,2967.1,2.90613223]
[1768958095620,2.55585627,2967.4,2966.9,1.03181371]
[1768958095920,2.55585627,2967.4,2966.9,1.11]
[1768958096212,2.55585627,2967.4,2966.9,3.65813714]
[1768958096430,5.9276962,2967.5,2967.0,2.54813714]
[1768958096616,2.55785627,2967.5,2967.0,2.54813714]
[1768958096786,5.92770648,2967.5,2967.0,2.54813714]
[1768958096990,2.55585627,2967.4,2967.0,2.54813714]
[1768958097685,2.55585627,2967.4,2966.9,1.11]
[1768958097911,2.55585627,2967.3,2966.9,1.11]
[1768958098117,2.55585627,2967.3,2966.9,1.665]
[1768958098314,0.92975567,2967.4,2966.9,1.665]
[1768958098315,2.55585627,2967.1,2966.9,1.665]
[1768958098613,3.37018064,2967.2,2966.8,1.11]
[1768958099207,5.92603691,2967.2,2966.8,1.11]
[1768958100623,5.92603691,2967.2,2966.8,1.665]
[1768958100829,0.002,2967.5,2966.9,2.54813714]
[1768958101005,0.002,2967.5,2966.8,2.30671371]